bitfinex/quotes_SOLUSD_20220211
["timestamp","ask_amount","ask_price","bid_price","bid_amount"]
[1644584760426,4.85192075,106.79,106.72,42.23721585]
[1644584760625,9.53492075,106.79,106.72,42.23721585]
[1644584760827,9.53492075,106.79,106.72,42.48721585]
[1644584761725,14.0578,106.78,106.72,42.48721585]
[1644584764231,4.683,106.77,106.72,42.23721585]
[1644584764432,59.36049618,106.77,106.7,6.01073596]
[1644584764631,54.67749618,106.77,106.7,6.01073596]
[1644584765232,54.67749618,106.77,106.7,4.683]
[1644584765433,14.0586,106.77,106.71,42.76801021]
[1644584767237,14.0586,106.77,106.71,43.01801021]
[1644584769436,18.7426,106.77,106.71,43.01801021]
[1644584770036,18.7426,106.77,106.71,44.34574617]
[1644584770437,14.0586,106.77,106.72,4.684]
[1644584770637,14.0586,106.77,106.73,36.74655285]
[1644584773542,37.362,106.78,106.73,36.74655285]
[1644584774344,14.0564,106.78,106.73,36.74655285]
[1644584776647,4.683,106.81,106.74,4.683]
[1644584776847,27.524,106.82,106.74,27.6064]
[1644584777245,27.524,106.82,106.74,28.93413596]
[1644584777646,22.842,106.82,106.74,45.37010387]
[1644584777949,22.842,106.82,106.75,7.32773596]
[1644584778146,4.682,106.83,106.76,6.00973596]
[1644584778346,4.682,106.84,106.76,6.25973596]
[1644584778548,48.07971546,106.84,106.77,44.81875387]
[1644584778746,14.0495,106.83,106.77,44.81875387]
[1644584778946,14.0495,106.83,106.77,45.06875387]
[1644584779747,14.0495,106.83,106.77,44.81875387]
[1644584780147,4.681,106.82,106.77,44.81875387]
[1644584781146,24.7104,106.87,106.77,44.81875387]
[1644584781147,4.681,106.86,106.77,61.50142178]
[1644584781347,4.681,106.86,106.78,30.9731]
[1644584781548,4.681,106.86,106.78,32.30083596]
[1644584781751,24.2811,106.89,106.79,2.38366791]
[1644584781950,29.0269,106.92,106.81,45.75564826]
[1644584782247,18.72,106.92,106.82,2.38366791]
[1644584782448,4.68,106.92,106.83,18.228]
[1644584782648,4.678,106.94,106.83,18.228]
[1644584782848,4.678,106.94,106.84,31.20646791]
[1644584783049,47.4584,106.96,106.85,59.96863882]
[1644584783050,52.1344,106.96,106.85,59.96863882]
[1644584783249,4.676,106.96,106.85,62.35230673]
[1644584783448,4.676,106.96,106.86,6.0]
[1644584783650,15.03687879,106.98,106.87,18.7102]
[1644584783848,15.03687879,106.98,106.87,75.73306791]
[1644584784551,15.03687879,106.98,106.88,6.0]
[1644584784748,14.0332,106.97,106.88,20.0328]
[1644584784950,4.676,106.96,106.88,20.2828]
[1644584785348,4.676,106.96,106.89,2.38366791]
[1644584785649,4.676,106.97,106.89,45.55453226]
[1644584785848,4.675,106.98,106.89,41.12853226]
[1644584786048,4.675,106.98,106.89,40.87853226]
[1644584786849,14.0334,106.97,106.89,40.87853226]
[1644584787053,4.675,106.96,106.89,40.87853226]
[1644584787751,4.676,106.98,106.89,40.87853226]
[1644584787951,4.676,106.98,106.9,4.675]
[1644584788154,4.676,106.98,106.9,13.425]
[1644584788353,4.676,106.98,106.9,13.675]
[1644584788552,18.7089,106.98,106.9,13.675]
[1644584788955,4.676,106.98,106.9,13.675]
[1644584789153,4.676,106.98,106.9,9.0]
[1644584791656,152.72984592,107.01,106.91,2.38366791]
[1644584791854,65.7039,107.01,106.91,33.06996791]
[1644584792855,40.22495206,107.0,106.91,24.6863]
[1644584793054,4.674,106.99,106.91,0.25]
[1644584793455,7.05766791,106.99,106.89,40.87853226]
[1644584793655,13.55,106.98,106.89,40.87853226]
[1644584793855,13.55,106.98,106.85,4.675]
[1644584793856,4.675,106.97,106.84,28.013]
[1644584794055,14.0393,106.93,106.82,27.5883]
[1644584794256,14.0393,106.93,106.81,13.55]
[1644584794458,4.678,106.92,106.82,4.678]
[1644584794654,18.228,106.92,106.82,4.678]
[1644584794859,18.228,106.92,106.83,41.07075589]
[1644584796055,2.38366791,106.93,106.83,52.29275589]
[1644584796278,4.678,106.95,106.84,6.0]
[1644584796456,4.678,106.95,106.85,13.55]
[1644584796855,4.678,106.95,106.86,6.0]
[1644584797057,4.678,106.95,106.87,44.39873018]
[1644584797261,23.1529,106.96,106.87,44.39873018]
[1644584797459,23.1529,106.96,106.87,44.64873018]
[1644584797659,4.676,106.95,106.87,44.64873018]
[1644584797857,18.7123,106.95,106.87,44.64873018]
[1644584798259,14.0363,106.95,106.88,4.676]
[1644584798458,14.0363,106.95,106.88,13.02]
[1644584798661,13.55,106.97,106.88,13.02]
[1644584798863,4.676,106.96,106.88,13.02]
[1644584799058,14.0342,106.97,106.88,13.02]
[1644584799558,14.0342,106.97,106.89,6.0]
[1644584799758,4.675,106.96,106.89,6.0]
[1644584800061,14.0342,106.97,106.89,6.25]
[1644584800357,113.2308,106.99,106.89,0.25]
[1644584800761,113.2308,106.99,106.89,6.25]
[1644584801662,113.2308,106.99,106.9,4.675]
[1644584801862,113.2308,106.99,106.9,4.925]
[1644584802261,113.2308,106.99,106.91,42.92595622]
[1644584802666,66.2308,106.99,106.91,50.89095622]
[1644584802865,66.2308,106.99,106.91,51.14095622]
[1644584802866,18.7078,106.99,106.91,51.14095622]
[1644584803063,4.675,107.0,106.92,4.675]
[1644584803264,14.0291,107.01,106.92,10.675]
[1644584803466,14.0291,107.01,106.92,10.925]
[1644584804289,2.38366791,107.0,106.92,4.925]
[1644584804489,7.05766791,107.0,106.92,4.925]
[1644584804689,4.674,107.03,106.92,18.951]
[1644584804889,4.674,107.03,106.93,21.93366791]
[1644584805090,4.674,107.03,106.93,19.55]
[1644584805292,4.674,107.03,106.93,6.0]
[1644584805490,4.674,107.03,106.93,6.25]
[1644584805691,4.674,107.03,106.93,0.25]
[1644584805890,4.674,107.03,106.93,8.63366791]
[1644584806091,18.6994,107.03,106.93,22.18366791]
[1644584806690,18.6994,107.03,106.93,19.8]
[1644584807491,18.6994,107.03,106.93,21.12773596]
[1644584807692,18.6994,107.03,106.93,19.55]
[1644584807894,18.6994,107.03,106.93,13.55]
[1644584808494,65.6994,107.03,106.93,14.87773596]
[1644584808696,65.6994,107.03,106.93,13.55]
[1644584809395,10.05487564,107.01,106.92,47.5911]
[1644584809598,14.0315,106.99,106.92,47.5911]
[1644584809797,4.674,106.98,106.92,47.5911]
[1644584809996,14.0315,106.99,106.92,47.5911]
[1644584810598,14.0315,106.99,106.92,48.91883596]
[1644584811198,4.674,106.98,106.92,1.32773596]
[1644584811398,14.0315,106.99,106.92,1.32773596]
[1644584812198,18.7039,107.0,106.93,1.32773596]
[1644584812398,28.4658,107.02,106.94,1.32773596]
[1644584812597,23.7918,107.02,106.94,1.32773596]
[1644584812802,23.7918,107.02,106.95,42.05617463]
[1644584813299,51.436,107.03,106.95,42.05617463]
[1644584813500,9.5712401,107.05,106.96,26.60666791]
[1644584813699,4.8982401,107.05,106.98,1.32773596]
[1644584813902,4.8982401,107.05,106.99,5.99973596]
[1644584814398,4.8982401,107.05,107.0,35.92171484]
[1644584814600,4.8982401,107.05,107.0,37.2494508]
[1644584814799,4.8982401,107.05,107.0,39.88311871]
[1644584815401,4.8982401,107.05,107.01,6.0]
[1644584815602,4.8982401,107.05,107.01,7.32773596]
[1644584815799,4.8982401,107.05,107.01,9.96140387]
[1644584816201,4.8982401,107.05,107.02,37.84757645]
[1644584816410,0.5088257,107.09,107.04,39.0]
[1644584816803,0.5088257,107.09,107.04,0.25]
[1644584817205,0.5088257,107.09,107.04,48.06170842]
[1644584818404,4.67,107.15,107.06,38.67671122]
[1644584818605,18.6805,107.15,107.06,48.02271122]
[1644584818807,7.05166791,107.18,107.07,4.668]
[1644584819104,13.55,107.17,107.07,4.668]
[1644584819304,4.667,107.16,107.06,38.92671122]
[1644584819505,41.56940486,107.15,107.06,38.67671122]
[1644584819705,4.668,107.14,107.06,38.67671122]
[1644584819905,14.0141,107.12,107.06,38.67671122]
[1644584820108,14.0141,107.12,107.03,5.99573596]
[1644584820109,44.41801846,107.11,107.03,5.99573596]
[1644584820405,44.41801846,107.11,107.03,4.668]
[1644584820605,4.668,107.11,107.03,4.668]
[1644584820812,46.7213,107.13,107.03,4.668]
[1644584821407,14.0164,107.1,107.03,5.99573596]
[1644584821606,14.0164,107.1,107.04,35.40787135]
[1644584822407,14.0164,107.1,107.04,35.65787135]
[1644584822608,50.13314479,107.12,107.04,35.65787135]
[1644584822609,18.6823,107.12,107.04,35.65787135]
[1644584824309,18.6823,107.12,107.04,35.40787135]
[1644584825214,18.6823,107.12,107.04,35.65787135]
[1644584825411,18.6823,107.12,107.04,38.04153926]
[1644584826016,14.0143,107.12,107.05,4.668]
[1644584826212,14.0119,107.14,107.05,4.668]
[1644584826413,14.0119,107.14,107.06,6.0]
[1644584826614,4.668,107.18,107.07,4.668]
[1644584826814,13.55,107.16,107.07,4.918]
[1644584827012,13.55,107.16,107.08,35.64168042]
[1644584827213,4.667,107.15,107.08,45.28434833]
[1644584827513,18.23394767,107.16,107.08,47.81768042]
[1644584827712,4.667,107.15,107.08,42.90068042]
[1644584828112,4.667,107.15,107.08,35.89168042]
[1644584828313,4.667,107.15,107.08,35.64168042]
[1644584828516,46.71352703,107.14,107.08,35.64168042]
[1644584828716,46.71352703,107.14,107.05,1.32773596]
[1644584828914,7.05166791,107.13,107.04,1.32773596]
[1644584829115,20.60166791,107.13,107.03,5.99573596]
[1644584829414,18.218,107.13,107.03,5.99573596]
[1644584829614,18.218,107.13,107.04,42.90952967]
[1644584829814,32.23,107.13,107.04,42.90952967]
[1644584830417,4.63374597,107.12,107.04,43.15952967]
[1644584830616,4.668,107.11,107.04,43.15952967]
[1644584830819,14.0154,107.11,107.04,43.15952967]
[1644584831417,14.0154,107.11,107.04,42.90952967]
[1644584832417,4.668,107.1,107.04,42.90952967]
[1644584832918,18.6839,107.1,107.04,42.90952967]
[1644584833119,13.56560966,107.09,107.02,1.32773596]
[1644584833317,18.22,107.08,107.01,1.32773596]
[1644584833520,25.414,107.08,107.0,1.32773596]
[1644584833719,2.38366791,107.07,106.99,1.32773596]
[1644584833917,14.0228,107.05,106.99,0.82773596]
[1644584834117,14.0228,107.05,107.0,34.71760297]
[1644584834316,28.29166699,107.05,106.99,0.82773596]
[1644584834517,4.672,107.04,106.99,0.82773596]
[1644584834717,18.94086699,107.05,106.96,4.672]
[1644584834917,4.672,107.03,106.95,68.58222968]
[1644584835119,14.0246,107.04,106.95,52.3862]
[1644584835923,14.0246,107.04,106.96,45.42741714]
[1644584837222,14.0246,107.04,106.96,45.67741714]
[1644584837621,14.0246,107.04,106.96,45.42741714]
[1644584838223,4.672,107.03,106.96,45.42741714]
[1644584838425,14.0266,107.02,106.96,45.42741714]
[1644584841628,4.673,107.04,106.96,45.67741714]
[1644584841828,4.672,107.06,106.97,4.672]
[1644584842027,4.672,107.06,106.97,18.222]
[1644584842229,4.672,107.06,106.98,37.08024486]
[1644584842428,4.672,107.06,107.0,43.82587451]
[1644584842629,14.0231,107.05,107.0,43.82587451]
[1644584842829,4.671,107.04,106.99,4.672]
[1644584843029,4.672,107.05,106.95,4.672]
[1644584843732,14.0251,107.03,106.96,44.95366797]
[1644584845448,14.0251,107.03,106.95,4.672]
[1644584845650,14.0304,106.99,106.92,24.6022]
[1644584845849,4.674,106.98,106.91,2.64602968]
[1644584846050,4.675,107.01,106.9,13.55]
[1644584846451,35.31822694,107.0,106.91,42.67893204]
[1644584846651,4.674,106.99,106.91,42.67893204]
[1644584846850,14.0315,106.98,106.91,42.67893204]
[1644584848151,30.06054606,106.98,106.91,42.92893204]
[1644584848552,4.675,106.97,106.91,42.92893204]
[1644584849352,14.0315,106.98,106.91,42.92893204]
[1644584850557,4.47677178,106.97,106.91,42.92893204]
[1644584850757,9.15177178,106.97,106.91,42.92893204]
[1644584851756,4.675,106.97,106.91,42.92893204]
[1644584852456,4.675,106.97,106.91,42.67893204]
[1644584852857,14.0294,107.0,106.91,42.67893204]
[1644584852858,18.7044,107.0,106.91,42.67893204]
[1644584853262,18.7044,107.0,106.91,45.06259995]
[1644584853461,18.7044,107.0,106.92,13.55]
[1644584853660,18.701,107.01,106.92,32.251]
[1644584853965,14.027,107.01,106.93,6.0]
[1644584854158,14.027,107.01,106.95,37.54135106]
[1644584854961,14.027,107.01,106.95,37.04135106]
[1644584856864,14.027,107.01,106.92,30.03286791]
[1644584856865,13.60378521,107.0,106.92,4.673]
[1644584857067,13.60378521,107.0,106.89,23.8312]
[1644584857068,14.0316,106.98,106.89,42.0552]
[1644584857266,4.675,106.97,106.89,37.3812]
[1644584857466,4.675,106.97,106.89,23.8312]
[1644584857665,2.38366791,106.98,106.89,23.8312]
[1644584857867,36.49069242,106.98,106.9,47.52904014]
[1644584858566,14.0359,106.95,106.9,47.52904014]
[1644584859771,4.676,106.94,106.87,13.55]
[1644584859967,18.7125,106.94,106.87,13.55]
[1644584860170,14.0365,106.94,106.87,13.55]
[1644584860378,14.0365,106.94,106.85,64.7847]
[1644584860571,4.676,106.93,106.85,64.7847]
[1644584860770,41.16669242,106.93,106.86,48.52596894]
[1644584860970,14.0399,106.91,106.86,48.52596894]
[1644584861371,4.676,106.9,106.86,48.52596894]
[1644584861577,4.676,106.92,106.86,48.52596894]
[1644584861871,46.8042,106.93,106.86,48.52596894]
[1644584862271,14.0408,106.91,106.86,48.52596894]
[1644584862871,4.676,106.92,106.86,48.52596894]
[1644584863073,4.676,106.93,106.86,48.52596894]
[1644584863270,46.7956,106.95,106.86,53.45196894]
[1644584863271,4.676,106.94,106.86,53.45196894]
[1644584863471,4.676,106.94,106.86,53.20196894]
[1644584864871,14.0373,106.93,106.86,53.45196894]
[1644584865675,31.46817655,106.93,106.86,53.20196894]
[1644584866075,14.0373,106.93,106.86,53.20196894]
[1644584866275,4.676,106.92,106.86,48.52596894]
[1644584866574,18.7144,106.92,106.86,48.52596894]
[1644584866776,14.0384,106.92,106.86,48.52596894]
[1644584866973,14.0384,106.92,106.86,48.77596894]
[1644584869377,38.98930381,106.94,106.86,48.77596894]
[1644584869579,14.0373,106.93,106.86,53.20196894]
[1644584870577,17.53396919,106.92,106.86,53.20196894]
[1644584870781,14.0396,106.91,106.86,53.20196894]
[1644584870983,14.0396,106.91,106.86,48.52596894]
[1644584874389,18.7156,106.91,106.86,48.52596894]
[1644584874592,14.0396,106.91,106.86,48.52596894]
[1644584875190,4.676,106.93,106.86,48.52596894]
[1644584875393,4.676,106.95,106.86,53.45196894]
[1644584875993,14.02279832,106.94,106.86,53.45196894]
[1644584876692,14.0372,106.93,106.86,67.48886894]
[1644584878393,4.677,107.03,106.9,0.48]
[1644584878593,4.674,107.08,106.94,14.0253]
[1644584878812,4.674,107.08,106.95,199.37687401]
[1644584879016,14.0189,107.08,106.97,169.34]
[1644584879315,4.671,107.09,106.98,50.4113125]
[1644584879511,43.45653229,107.07,106.98,50.4113125]
[1644584879714,43.45653229,107.07,106.98,64.6836125]
[1644584879915,43.45653229,107.07,106.98,67.06728041]
[1644584880416,43.45653229,107.07,106.98,64.6836125]
[1644584880713,14.0213,107.06,106.98,64.6836125]
[1644584880913,18.6923,107.06,106.98,27.8223]
[1644584881115,18.6923,107.06,106.98,13.8]
[1644584881923,8.39074071,107.05,106.98,13.8]
[1644584882118,4.672,107.04,106.98,13.8]
[1644584882319,37.77863701,107.03,106.98,13.55]
[1644584882516,37.77863701,107.03,106.95,10.671]
[1644584882517,37.77863701,107.03,106.95,24.6972]
[1644584882718,4.673,107.02,106.95,18.221]
[1644584882920,4.673,107.02,106.95,4.671]
[1644584883125,18.223,107.02,106.95,4.671]
[1644584883318,36.0,106.98,106.88,16.19602968]
[1644584883520,4.675,106.97,106.88,16.19602968]
[1644584883719,4.675,106.97,106.86,16.19602968]
[1644584883919,4.675,106.97,106.86,13.55]
[1644584884118,4.675,106.97,106.87,5.33581253]
[1644584884520,35.89120441,106.96,106.88,42.20742403]
[1644584884721,4.676,106.95,106.88,42.20742403]
[1644584885323,4.676,106.96,106.88,42.20742403]
[1644584885723,14.0366,106.95,106.88,42.20742403]
[1644584886123,25.5946,106.95,106.87,2.64602968]
[1644584886325,4.676,106.94,106.87,7.9817745]
[1644584886524,4.676,106.94,106.87,5.33574482]
[1644584887124,34.49348411,106.93,106.87,41.97603114]
[1644584887323,4.676,106.96,106.87,36.64028632]
[1644584887724,14.0397,106.92,106.87,36.64028632]
[1644584889527,21.60240872,106.92,106.85,67.86332968]
[1644584889727,14.0425,106.9,106.86,5.33653686]
[1644584890131,14.0425,106.9,106.84,2.64602968]
[1644584890328,14.0425,106.9,106.84,8.23288966]
[1644584890626,52.87091989,106.9,106.85,5.33685998]
[1644584891926,52.87091989,106.9,106.83,7.32202968]
[1644584892126,14.0457,106.88,106.83,7.32202968]
[1644584892328,24.6007,106.88,106.84,5.33740864]
[1644584892528,24.6007,106.88,106.83,4.676]
[1644584892731,51.4903,106.92,106.83,4.676]
[1644584892927,4.679,106.92,106.84,2.38366791]
[1644584893127,4.678,106.93,106.84,10.36680331]
[1644584893429,4.678,106.93,106.85,5.33710572]
[1644584893627,4.678,106.93,106.86,48.29176412]
[1644584893628,41.51191048,106.93,106.86,48.29176412]
[1644584893826,41.51191048,106.93,106.86,48.54176412]
[1644584894029,41.51191048,106.93,106.86,48.29176412]
[1644584894628,15.01336252,106.91,106.86,48.29176412]
[1644584894828,19.68936252,106.91,106.84,2.64602968]
[1644584895030,15.01336252,106.91,106.84,2.89602968]
[1644584895331,15.01336252,106.91,106.84,8.23291251]
[1644584895531,27.9429,106.93,106.84,0.25]
[1644584895729,14.0418,106.91,106.84,0.25]
[1644584896128,14.0418,106.91,106.83,53.21702968]
[1644584896331,14.0418,106.91,106.84,12.66078582]
[1644584896529,14.0418,106.91,106.85,45.83543155]
[1644584896929,14.0418,106.91,106.85,46.08543155]
[1644584899236,30.57937145,106.9,106.84,2.64602968]
[1644584899435,30.57937145,106.9,106.83,7.98334348]
[1644584899636,30.57937145,106.9,106.81,2.64602968]
[1644584899837,30.57937145,106.9,106.81,5.33847116]
[1644584900036,14.0424,106.9,106.81,18.88847116]
[1644584900338,14.0424,106.9,106.82,13.98450084]
[1644584900538,14.0424,106.9,106.83,12.66350084]
[1644584900736,14.0424,106.9,106.84,5.33847116]
[1644584900936,14.0424,106.9,106.84,44.97880821]
[1644584901140,18.7204,106.9,106.84,39.64033705]
[1644584901338,12.88393596,106.89,106.84,39.89033705]
[1644584902136,26.92763596,106.89,106.84,39.89033705]
[1644584902338,26.92763596,106.89,106.84,0.25]
[1644584902836,26.92763596,106.89,106.83,2.63366791]
[1644584903436,26.92763596,106.89,106.83,48.40358211]
[1644584904538,26.92763596,106.89,106.83,53.08258211]
[1644584904936,14.0437,106.89,106.83,53.08258211]
[1644584905838,14.0437,106.89,106.83,48.40358211]
[1644584906240,18.7227,106.89,106.83,48.40358211]
[1644584908043,18.7227,106.89,106.84,5.3372179]
[1644584908249,14.0437,106.89,106.83,48.40358211]
[1644584909345,14.0437,106.89,106.84,5.33705005]
[1644584909546,14.0437,106.89,106.85,40.19346873]
[1644584909947,14.0437,106.89,106.85,40.44346873]
[1644584910346,14.0437,106.89,106.83,5.02969759]
[1644584910648,14.0437,106.89,106.84,7.98338655]
[1644584910849,4.678,106.88,106.84,7.98338655]
[1644584911051,14.0467,106.87,106.83,2.64602968]
[1644584911646,18.7257,106.87,106.83,2.64602968]
[1644584912248,18.7257,106.87,106.82,7.98338655]
[1644584912448,18.7257,106.87,106.82,40.77555012]
[1644584912648,18.7257,106.87,106.83,5.33836619]
[1644584912847,14.0467,106.87,106.83,5.33836619]
[1644584913050,14.0467,106.87,106.83,7.98439587]
[1644584913650,14.0467,106.87,106.83,8.23439587]
[1644584913854,14.0467,106.87,106.84,5.33836619]
[1644584914051,3.03219997,106.86,106.84,5.33836619]
[1644584914852,3.03219997,106.86,106.84,51.53006828]
[1644584915052,3.03219997,106.86,106.85,3.03219997]
[1644584916152,3.03219997,106.86,106.84,46.19170209]
[1644584916352,14.0467,106.87,106.86,1.92596227]
[1644584916554,22.723,106.91,106.85,8.36985789]
[1644584916753,4.88864997,106.95,106.85,16.83219997]
[1644584916754,4.678,106.94,106.85,16.83219997]
[1644584917055,4.676,106.95,106.87,2.64602968]
[1644584917254,4.676,107.0,106.89,2.64602968]
[1644584917454,36.71395909,106.99,106.91,43.88511676]
[1644584917654,15.13331391,106.97,106.92,5.33650528]
[1644584918154,15.13331391,106.97,106.91,43.88511676]
[1644584918557,15.13331391,106.97,106.9,13.55]
[1644584918754,4.675,106.96,106.9,13.8]
[1644584919154,4.675,106.96,106.9,13.55]
[1644584919355,4.675,106.96,106.9,13.8]
[1644584919555,34.21092978,106.95,106.9,13.8]
[1644584919755,48.24572978,106.95,106.9,13.8]
[1644584920672,14.0348,106.95,106.9,13.8]
[1644584920873,14.0333,106.96,106.9,27.8333]
[1644584921075,14.0333,106.96,106.9,43.8863]
[1644584921775,14.0333,106.96,106.91,40.76406512]
[1644584922173,14.0333,106.96,106.91,41.01406512]
[1644584922976,18.7083,106.96,106.91,41.01406512]
[1644584924476,14.0333,106.96,106.91,41.01406512]
[1644584925477,18.7083,106.96,106.91,41.01406512]
[1644584925677,14.0333,106.96,106.91,41.01406512]
[1644584926381,14.0333,106.96,106.91,0.25]
[1644584926877,18.7083,106.96,106.9,27.8333]
[1644584927277,18.7083,106.96,106.9,67.51631567]
[1644584928378,9.46009783,106.95,106.9,71.94131567]
[1644584928581,9.46009783,106.95,106.9,67.26631567]
[1644584929578,14.0333,106.96,106.9,67.26631567]
[1644584929778,4.676,106.95,106.9,67.51631567]
[1644584930878,4.676,106.95,106.9,27.8333]
[1644584931080,14.0346,106.95,106.9,13.8]
[1644584931685,14.0346,106.95,106.9,13.55]
[1644584932080,18.7106,106.95,106.9,13.55]
[1644584932285,12.04031391,106.94,106.9,13.55]
[1644584932482,26.07631391,106.94,106.9,13.55]
[1644584933485,26.07631391,106.94,106.89,49.5931]
[1644584933884,26.07631391,106.94,106.89,85.8717684]
[1644584934084,26.07631391,106.94,106.88,27.5854]
[1644584934583,26.07631391,106.94,106.88,13.55]
[1644584935384,38.74877391,106.92,106.87,14.0367]
[1644584935586,38.74877391,106.92,106.87,0.25]
[1644584936486,52.78737391,106.92,106.86,98.72213093]
[1644584936685,52.78737391,106.92,106.86,84.68403093]
[1644584937089,14.0386,106.92,106.86,84.68403093]
[1644584937487,51.4713,106.95,106.86,84.68403093]
[1644584937888,51.4713,106.95,106.86,84.93403093]
[1644584938088,87.50645167,106.95,106.86,84.93403093]
[1644584938789,14.0372,106.93,106.86,98.97203093]
[1644584938988,4.676,106.92,106.86,98.97203093]
[1644584939391,15.81212133,106.93,106.86,98.97203093]
[1644584939888,14.0382,106.92,106.86,84.93403093]
[1644584940088,14.0382,106.92,106.86,84.68403093]
[1644584941089,36.03515167,106.91,106.86,37.5655]
[1644584941489,50.07565167,106.91,106.85,36.6254]
[1644584941689,50.07565167,106.91,106.85,36.8754]
[1644584941892,50.07565167,106.91,106.85,22.836]
[1644584942390,14.0405,106.91,106.86,35.13928478]
[1644584942990,18.7143,106.92,106.86,35.38928478]
[1644584943190,14.0383,106.92,106.86,35.38928478]
[1644584943392,14.0383,106.92,106.86,40.06528478]
[1644584943791,14.0383,106.92,106.86,54.10358478]
[1644584943991,14.0383,106.92,106.87,5.33608615]
[1644584944493,14.0383,106.92,106.87,5.58608615]
[1644584944793,14.0366,106.93,106.87,30.22066791]
[1644584944991,4.676,106.96,106.88,4.676]
[1644584945191,4.676,106.96,106.89,45.54527428]
[1644584945392,29.2361,107.01,106.91,47.74180535]
[1644584945592,43.5012,107.01,106.91,47.74180535]
[1644584945794,43.5012,107.01,106.91,58.65280535]
[1644584945992,14.0305,106.98,106.92,14.0305]
[1644584946493,46.2046882,107.0,106.93,41.1174868]
[1644584946694,4.674,106.99,106.93,41.1174868]
[1644584946894,4.674,106.99,106.93,41.3674868]
[1644584947693,18.703,106.99,106.93,55.3964868]
[1644584949005,18.703,106.99,106.93,41.3674868]
[1644584949006,5.6425848,106.98,106.93,41.3674868]
[1644584949202,19.6727848,106.98,106.93,0.25]
[1644584949502,19.6727848,106.98,106.92,18.9539]
[1644584949705,14.0302,106.98,106.92,14.2799]
[1644584950804,14.0302,106.98,106.93,34.19729382]
[1644584951203,14.0302,106.98,106.93,34.44729382]
[1644584953829,14.0288,106.99,106.93,48.47609382]
[1644584954028,4.675,107.0,106.94,1.31396636]
[1644584954228,4.674,107.02,106.95,1.31396636]
[1644584954426,4.674,107.02,106.95,11.11696636]
[1644584954829,38.92166226,107.02,106.95,66.88143992]
[1644584955027,38.92166226,107.02,106.96,1.31396636]
[1644584955028,52.94646226,107.02,106.96,1.31396636]
[1644584955228,52.94646226,107.02,106.95,1.31396636]
[1644584955627,52.94646226,107.02,106.94,14.86396636]
[1644584955829,52.94646226,107.02,106.94,1.31396636]
[1644584956229,52.94646226,107.02,106.93,35.86872104]
[1644584957028,67.09306226,107.02,106.93,35.86872104]
[1644584958333,67.09306226,107.02,106.93,36.11872104]
[1644584959734,69.47673017,107.02,106.93,1.56396636]
[1644584959933,69.47673017,107.02,106.93,1.31396636]
[1644584960132,83.02673017,107.02,106.92,5.98696636]
[1644584960332,115.96466702,107.02,106.9,1.31396636]
[1644584960531,115.96466702,107.02,106.89,1.31396636]
[1644584960932,115.96466702,107.02,106.9,1.31396636]
[1644584961132,115.96466702,107.02,106.89,1.31396636]
[1644584961533,47.0,107.01,106.89,1.31396636]
[1644584961736,14.0374,106.98,106.89,1.31396636]
[1644584961934,34.24766226,106.97,106.89,1.31396636]
[1644584962133,4.675,106.96,106.89,1.31396636]
[1644584962334,17.59961074,106.95,106.89,1.31396636]
[1644584962734,31.63661074,106.95,106.89,1.31396636]
[1644584965145,48.28656226,106.93,106.88,5.98996636]
[1644584965344,14.0389,106.93,106.88,5.98996636]
[1644584965545,14.0389,106.93,106.88,1.31396636]
[1644584966444,52.37017536,106.93,106.88,1.31396636]
[1644584967757,52.37017536,106.93,106.89,1.31396636]
[1644584968253,52.37017536,106.93,106.88,1.31396636]
[1644584968454,57.04617536,106.93,106.88,1.31396636]
[1644584968855,18.7149,106.93,106.88,44.14652189]
[1644584969055,14.0389,106.93,106.89,1.31396636]
[1644584969253,51.4651,106.96,106.9,1.31396636]
[1644584969254,14.0357,106.94,106.9,1.31396636]
[1644584970055,18.97062898,106.94,106.9,1.31396636]